Cogmind - Beta 10.2 @@@ ROGUE MODE // 2021.10.24 @ 23:01:40 Player: raddakar Result: Destroyed by G-34 Mercenary with Small Laser Performance ------------- Evolutions (0) 0 Regions Visited (2) 400 Robots Destroyed (26) 130 Value Destroyed (526) 526 Prototype IDs (0) 0 Alien Tech Used (0) 0 Bonus (0) 0 TOTAL SCORE: 1056 Bonus ------- None Cogmind --------- Core Integrity 0/250 Matter 300/300 Energy 100/100 System Corruption 3% Temperature Cool (289) Movement Core (300) Ox5 Location -10/Mines Parts ------- > --- POWER (1) -------- (None) > --- PROPULSION (2) --- Aluminum Leg > --- UTILITY (2) ------ Large Storage Unit Core Shielding > --- WEAPON (2) ------- (None) > --- INVENTORY (10) --- Light Treads Light Treads Aluminum Leg Aluminum Leg Medium Matter Pod (100) High-capacity Matter Pod (200) Utility Shielding Light Armor Plating Small Laser Peak State ------------ > --- POWER ------------ Ion Engine > --- PROPULSION ------- Aluminum Leg Aluminum Leg > --- UTILITY ---------- Large Storage Unit Large Storage Unit > --- WEAPON ----------- Particle Gun Light Assault Rifle > --- INVENTORY -------- Ion Engine Light Treads Light Treads Aluminum Leg Aluminum Leg Improved Heat Sink Medium Matter Pod High-capacity Matter Pod Signal Interpreter Core Shielding Utility Shielding Light Armor Plating Light Armor Plating Grenade Launcher Mining Laser [Rating: 9] Favorites ----------- Power Ion Engine Engine Ion Engine Propulsion Aluminum Leg Leg Aluminum Leg Utility Large Storage Unit Storage Large Storage Unit Protection Core Shielding Weapon Light Assault Rifle Energy Gun Particle Gun Ballistic Gun Light Assault Rifle Special Weapon Mining Laser Build | -11 -10 -10 ------- Run | Scr Mat Min Slots Evolved . | . . . Power . | . . . Propulsion . | . . . Utility . | . . . Weapon . | . . . Parts Attached 27 | 7 6 14 Power 3 | 1 . 2 Engine 3 | 1 . 2 Core . | . . . Reactor . | . . . Propulsion 6 | 2 . 4 Treads . | . . . Leg 6 | 2 . 4 Wheel . | . . . Hover . | . . . Flight . | . . . Utility 5 | 2 2 1 Device . | . . . Storage 4 | 2 2 . Processor . | . . . Hackware . | . . . Protection 1 | . . 1 Artifact . | . . . Weapon 13 | 2 4 7 Energy Gun 4 | . 1 3 Energy Cannon . | . . . Ballistic Gun 6 | 2 2 2 Ballistic Cannon . | . . . Launcher . | . . . Special Weapon 3 | . 1 2 Impact Weapon . | . . . Slashing Weapon . | . . . Piercing Weapon . | . . . Special Melee Weapon . | . . . Unidentified Prototypes . | . . . Parts Lost 13 | . 1 12 Power 3 | . . 3 Propulsion 3 | . . 3 Utility . | . . . Weapon 7 | . 1 6 Highest Loss Streak 4 | . 1 4 Average Slot Usage (%) 96 | . 97 95 Engine 13 | . 14 13 Leg 27 | . 28 27 Storage 27 | . 28 27 Energy Gun 6 | . . 9 Ballistic Gun 16 | . 24 11 Special Weapon 2 | . 1 3 Naked Turns . | . . . Heaviest Build 41 | 15 40 41 Greatest Support 20 | 20 20 20 Greatest Overweight (x) 3 | 2 1 3 Average Overweight (x) 1 | . . 1 Largest Inventory Capacity 16 | 8 16 16 Average Capacity 15 | 6 15 15 Most Carried 16 | 6 16 16 Average Carried 12 | 3 10 14 Final Capacity 16 | 8 16 10 Final Carried 14 | 6 14 9 Class Distribution -------------------- 65% | Mutant 34% | Scavenger-Mutant Dominant Class ---------------- Mutant | -10/Materials Scavenger-Mutant | -10/Mines Resources | -11 -10 -10 ----------- Run | Scr Mat Min Matter Collected 853 | 274 98 481 Remotely . | . . . Salvage Created 958 | 121 382 455 Parts 51 | 9 20 22 Haulers Intercepted . | . . . Recyclers Shooed 11 | . 9 2 Parts Field Recycled . | . . . Retrieved Matter . | . . . Parts Self-Destructed . | . . . Prevented . | . . . Kills | -11 -10 -10 ------- Run | Scr Mat Min Combat Hostiles Destroyed 17 | . 8 9 Guns 16 | . 8 8 Cannons 1 | . . 1 Classes Destroyed 5 | 2 2 1 Worker 3 | . . 3 Tunneler 1 | 1 . . Recycler 5 | 1 2 2 Swarmer 6 | . 3 3 Grunt 11 | . 5 6 Best Kill Streak 4 | 2 4 3 Combat Bots Only 3 | . 3 3 Max Kills in Single Turn 2 | 2 1 1 Gunslinging . | . . . Exploded . | . . . Melee . | . . . Uniques/NPCs Destroyed . | . . . Combat | -11 -10 -10 -------- Run | Scr Mat Min Damage Taken 1584 | . 496 1088 Core 258 | . 39 219 Absorbed by Shields . | . . . Core Remaining (%) 100 | 100 . . Volleys Fired 133 | 2 42 89 Largest 2 | 2 2 2 Hottest 165 | 40 120 165 Shots Fired 212 | 4 82 126 Gun 185 | 4 77 104 Cannon . | . . . Launcher . | . . . Special 27 | . 5 22 Kinetic 135 | 4 77 54 Thermal 77 | . 5 72 Explosive . | . . . Electromagnetic . | . . . Robot Hit Streak 25 | 1 25 9 Robot Miss Streak 4 | 1 4 4 Penetration Max . | . . . Secondary Targets 2 | . 1 1 Max Gunslinging Chain 1 | . 1 1 Shots Hit Robots 121 | 2 55 64 Core Hits 56 | 3 25 28 Critical Hits 2 | . 1 1 Critical Kills 1 | . . 1 Critical Parts Destroyed 1 | . 1 . Melee Attacks . | . . . Impact . | . . . Slashing . | . . . Piercing . | . . . Sneak Attacks . | . . . Combat Hostiles . | . . . Follow-up Attacks . | . . . Damage Inflicted 1166 | 25 432 709 Guns 1069 | 25 426 618 Cannons . | . . . Explosions . | . . . Melee . | . . . Ramming 25 | . 6 19 Kinetic 746 | 25 426 295 Thermal 395 | . . 395 Explosive . | . . . Electromagnetic . | . . . Impact . | . . . Slashing . | . . . Piercing . | . . . Highest Corruption 3 | . 3 3 Average Corruption 3 | . 3 3 Corruption Purged . | . . . Effects 21 | . . 21 Message Errors 4 | . . 4 Matter Fused 3 | . . 3 Heat Flow Errors 3 | . . 3 Energy Discharges 3 | . . 3 Data Loss (minor) 5 | . . 5 Targeting Errors 3 | . . 3 Overload Shots . | . . . Overflow Damage . | . . . Projectiles . | . . . Explosions . | . . . Melee . | . . . Knockbacks . | . . . Impact . | . . . Kinetic . | . . . Secondary . | . . . Self-Inflicted Damage 7 | . 1 6 Shots . | . . . Rammed 4 | . 1 3 Targets Rammed 9 | . 4 5 Kicked 5 | . 3 2 Crushed . | . . . Highest Temperature 352 | . 80 352 Average Temperature 104 | . 17 119 Received Heat Transfer 576 | . 147 429 Siege Activations . | . . . Robots Corrupted . | . . . Combat Hostiles . | . . . Parts Fried . | . . . Impact Corruptions . | . . . Robots Melted . | . . . Combat Hostiles . | . . . Parts Melted . | . . . Heat Transferred 927 | . . 927 Parts Sabotaged . | . . . Parts Stolen . | . . . Parts Stripped . | . . . Power Chain Reactions . | . . . Missiles Intercepted . | . . . Alert | -11 -10 -10 ------- Run | Scr Mat Min Peak Influence 241 | 10 241 95 Initial 17 | . 6 17 Average 62 | 3 116 36 Maximum Alert Level 1 | . 1 . Low Security (%) 88 | 100 67 100 Level 1 11 | . 32 . Level 2 . | . . . Level 3 . | . . . Level 4 . | . . . Level 5 . | . . . High Security . | . . . Max Security . | . . . Squads Dispatched 1 | . 1 . Investigation . | . . . Extermination . | . . . Reinforcement 1 | . 1 . Assault . | . . . Garrison . | . . . Intercept . | . . . Construction Impeded . | . . . Haulers Reinforced . | . . . Stealth | -11 -10 -10 --------- Run | Scr Mat Min Distress Signals 3 | . 3 . Communications Jammed . | . . . Distress Signals . | . . . Times Spotted 30 | . 17 13 Peak Tracking Total 5 | . 5 3 Tactical Retreats 2 | . 1 1 Traps | -11 -10 -10 ------- Run | Scr Mat Min Traps Triggered . | . . . Indirectly . | . . . Trap Hack Attempts . | . . . Triggered . | . . . Disarmed . | . . . Reprogrammed . | . . . Reused . | . . . Traps Extracted . | . . . Installed . | . . . Triggered . | . . . Machines | -11 -10 -10 ---------- Run | Scr Mat Min Machines Disabled . | . . . Max in Single Turn . | . . . Machines Sabotaged . | . . . Garrisons Compromised . | . . . Overloaded Fab Kills . | . . . Fab Network Shutdowns . | . . . Hacking | -11 -10 -10 --------- Run | Scr Mat Min Machines Accessed 7 | . 5 2 Terminals 5 | . 3 2 Fabricators . | . . . Repair Stations 1 | . 1 . Recycling Units 1 | . 1 . Scanalyzers . | . . . Garrison Access . | . . . Total Hacks 13 | . 11 2 Successful 10 | . 8 2 Failed 3 | . 3 . Catastrophic . | . . . Database Lockouts . | . . . Manual 3 | . 3 . Terminals 9 | . 7 2 Fabricators . | . . . Repair Stations 2 | . 2 . Recycling Units 2 | . 2 . Scanalyzers . | . . . Garrison Access . | . . . Terminal Hacks 5 | . 3 2 Alert Level 1 | . 1 . Dispatch Records 1 | . . 1 Zone Layout 3 | . 2 1 Fabricator Hacks . | . . . Repair Station Hacks 2 | . 2 . Scan Component 1 | . 1 . Repair 1 | . 1 . Recycling Unit Hacks 1 | . 1 . Retrieve Matter 1 | . 1 . Scanalyzer . | . . . Garrison Access Hacks . | . . . Unauthorized Hacks 2 | . 2 . Terminals 2 | . 2 . Botnet 2 | . 2 . Fabricators . | . . . Repair Stations . | . . . Recycling Units . | . . . Scanalyzers . | . . . Garrison Access . | . . . Data Cores Recovered . | . . . Used . | . . . Hacking Detections 5 | . 3 2 Full Trace Events . | . . . Feedback Events . | . . . Feedback Blocked . | . . . Robot Schematics Acquired . | . . . Robots Built . | . . . Matter . | . . . Time . | . . . Total Robot Build Rating . | . . . Part Schematics Acquired . | . . . Parts Built . | . . . Matter . | . . . Time . | . . . Total Part Build Rating . | . . . Parts Repaired 1 | . 1 . Time 26 | . 26 . Parts Recycled . | . . . Recycled Matter . | . . . Retrieved Matter . | . . . Retrieved Components . | . . . Parts Scanalyzed . | . . . Part Schematics Acquired . | . . . Parts Damaged . | . . . Bothacking | -11 -10 -10 ------------ Run | Scr Mat Min Used RIF Installer . | . . . Robots Hacked . | . . . Non-combat . | . . . Combat . | . . . Robot Hacks Applied . | . . . Relay Couplers Released . | . . . Robots Rewired . | . . . Allies Hacked . | . . . Hacks Repelled . | . . . Allies | -11 -10 -10 -------- Run | Scr Mat Min Total Allies . | . . . Largest Group . | . . . Highest-Rated Group . | . . . Highest-Rated Ally . | . . . Total Orders . | . . . Ally Attacks . | . . . Total Damage . | . . . Kills . | . . . Allies Corrupted . | . . . Allies Melted . | . . . Intel | -11 -10 -10 ------- Run | Scr Mat Min Robot Analysis Total . | . . . Derelict Logs Recovered . | . . . Drone Launches . | . . . Drone Recoveries . | . . . Exploration | -11 -10 -10 ------------- Run | Scr Mat Min Turns Passed 1728 | 93 591 1044 Spaces Moved 785 | 60 282 443 Core 7 | 7 . . Treads . | . . . Legs 778 | 53 282 443 Wheels . | . . . Hover . | . . . Flight . | . . . Fastest Speed 50 | 50 120 150 Average Speed 156 | 117 148 166 Slowest Speed 210 | 150 150 210 Overloaded Moves . | . . . Propulsion Burnouts . | . . . Robots Hopped . | . . . Cave-ins Triggered 1 | . 1 . Exploration Rate (%) 41 | 4 56 63 Regions Visited 2 Branch Regions 1 Pre-discovered Areas 1 | . . 1 Known Exits Taken . | . . . Unknown Exits Taken 2 | 1 1 . Scrap Searched 1 | . . 1 Spaces Dug 5 | . 5 . Terrain Destroyed 9 | . 5 4 Melee . | . . . Projectile 9 | . 5 4 AOE . | . . . Terrain Rammed . | . . . Walls Destroyed . | . . . Machines Disabled . | . . . Actions | -11 -10 -10 --------- Run | Scr Mat Min Total 1044 | 76 378 590 Wait 53 | . 30 23 Move 784 | 59 282 443 Hop . | . . . Pick Up 25 | 7 10 8 Fast Attach 10 | 7 1 2 Attach 13 | . 3 10 Detach 5 | . 2 3 Swap 4 | . 2 2 Drop 9 | 1 3 5 Fire 133 | 2 42 89 Melee . | . . . Ram . | . . . Kick 8 | . 3 5 Crush . | . . . Escape Stasis . | . . . Rewire . | . . . Trap . | . . . Miscellaneous . | . . . Route ------- -11/Scrapyard -10/Materials (discovered 2 exits: [*Mat] / *Min) -10/Mines (discovered 1 exit: [*Mat]) History --------- Turn | Location | Event 14 | -11/Scrapyard | Discovered new exit (range 15) 94 | -11/Scrapyard | Entered Materials 246 | -10/Materials | Discovered new exit (range 14) 313 | -10/Materials | Build established: Mutant 370 | -10/Materials | Repaired Lgt. Assault Rifle 446 | -10/Materials | Discovered new exit (range 4) 642 | -10/Materials | Crushed by falling debris 685 | -10/Materials | Entered Mines 814 | -10/Mines | Lost 4 parts (1p1n2w) 832 | -10/Mines | Discovered new exit (range 9) 839 | -10/Mines | Learned location of Storage (-9) 1219 | -10/Mines | Build established: Scavenger-Mutant 1490 | -10/Mines | Core integrity fell below 50% 1514 | -10/Mines | Lost 3 parts (1p1n1w) 1547 | -10/Mines | Excavation squad dispatched 1547 | -10/Mines | A large section of the Mines collapsed 1704 | -10/Mines | Core integrity fell below 20% 1729 | -10/Mines | Destroyed by G-34 Mercenary with Small Laser Last Messages --------------- 01683_ U-05 Engineer lays Concrete. 01684_ Kicked K-01 Serf out of the way. 01685_ U-05 Engineer lays Concrete. 01688_ U-05 Engineer builds a Wall. 01692_ U-05 Engineer lays Concrete. 01702_ T-07 Excavator is excavating. 01704_ U-05 Engineer lays Concrete. 01707_ T-07 Excavator is excavating. 01711_ Dropped Lrg. Storage Unit. 01720_ U-05 Engineer builds a Wall. 01722_ U-05 Engineer lays Concrete. 01723_ Aluminum Leg destroyed. 01725_ U-05 Engineer builds a Wall. 01726_ T-07 Excavator is excavating. 01727_ Particle Gun destroyed. 01727_ Mining Laser destroyed. 01728_ Slammed into G-34 Mercenary. 01728_ Aluminum Leg permanently disabled. 01728_ Destabilizing: Short circuit. 01729_ Ion Engine destroyed. Map ----- +----------------------------------------------------+ | | | | | | | | | | | | | | | | | | | | | | | | | ?????????????????????????????????????????? | | ???????????????????##????????????????????? | | ?????????????????####???????????######???? | | ????????????????## #??????????## ##??? | | ??????????????### #??????????# #??# | | ??????????????## # ##?????????# #?## | | ????????????### ###;##??????????# #?## | | ????????????? "* " #?????????## ### | | ?????????????# #;t#??????##### | | ?????????????## ##u ?????### | | ??????????????#!## #????## #### | | ??????????????#!##g#????# ## ##?## | | ??????????????#%g]!#????# ### ##??# | | ???????????####!#@####### ##?# ###??## | | ???????????# %ug ## ##??# #??### | | ???????????# ####????#=#??# | | ???????????# #########[#?# | | ???????????# %* *=#?# | | ???????????# """ """ ############ | | ???????? t """ """ T#?????????# # | | ????????#### """ """ ##?????????## #### | | ???????????# #???????????####### | | ???????????#############??????????????# | | ??????????????????????????????????????# | | ??????????????????????????????????????# ## | | ??????????????????????????????????????# #? | | ??????????????????????????????????????# #? | | ?????????????????????????????????????## #? | | ????????????????????????????????????## ## | | ????????????????????????????????????# # | | ????????????????????????????????????# # | | ???????????????????????????????????## # | | ??????????????????????????????????## # | | ??????????????????????????????????# ## | | ?????????????????????????????????# # #? | | ????????????????????????????????# ## #? | | ????????????????????????????????####?# #? | | ?????????????????????????????????????# #? | +----------------------------------------------------+ Best States ------------- Heat Dissipation 25 Energy Generation 10 Energy Capacity 250 Matter Stores 300 Matter Capacity 300 Sight Range 16 Terrain Scan Density 10 Core Shielding 20 Evasion (%) 40 Item Schematics ----------------- None Robot Schematics ------------------ None Fabricated ------------ Nothing Alien Tech Used ----------------- None Achievements -------------- None Challenges ------------ None Game ------ Seed MiningCloakingPit Manual? 0 Play Time 00:18:47 Cumulative 64.9 hours Start 2021.10.24 @ 22:40:55 End 2021.10.24 @ 23:01:40 Sessions 1 Manual Loads 0 Difficulty Rogue Special Mode None Game No. 26 Rogue 26 Adventurer 0 Explorer 0 Win Type - Total 0 Types 0/0/0/0/0/0/0/0/0 Lore% 13 Gallery% 44 Achievement% 32 Wizard Run 0 Options --------- ASCII 0 Keyboard 1 Movement Vi Keybinds 0 Fullscreen 0 Font 14/Terminus Map View 76x50 Tactical HUD 1 Map Filters NONE Filters NONE Steam 1 RUN: bbd3c673-9768-448b-97bc-38000ed904d5